bitfinex/quotes_SOLUSD_20240711
["timestamp","ask_amount","ask_price","bid_price","bid_amount"]
[1720672047451,12.21,140.79,140.74,11.87]
[1720672049454,12.21,140.79,140.72,22.0925]
[1720672049455,0.17,140.78,140.72,22.0925]
[1720672049656,11.87,140.77,140.72,33.9625]
[1720672050359,0.34,140.79,140.65,12.7758961]
[1720672050360,11.87,140.75,140.7,11.87]
[1720672050539,11.87,140.74,140.69,11.87]
[1720672050734,0.17,140.73,140.68,16.0988]
[1720672050944,0.51,140.73,140.68,16.0988]
[1720672051262,11.87,140.74,140.68,16.0988]
[1720672051263,11.87,140.75,140.7,11.87]
[1720672051558,0.34,140.74,140.7,11.87]
[1720672055456,12.21,140.74,140.69,11.87]
[1720672055954,11.87,140.73,140.68,16.0988]
[1720672056154,11.87,140.73,140.68,27.9688]
[1720672056535,0.34,140.72,140.68,27.9688]
[1720672056735,11.87,140.73,140.68,27.9688]
[1720672057551,12.38,140.74,140.69,11.87]
[1720672057748,12.38,140.74,140.68,27.9688]
[1720672058863,0.34,140.74,140.69,11.87]
[1720672059034,11.87,140.74,140.69,11.87]
[1720672059444,11.87,140.75,140.69,11.87]
[1720672062757,0.17,140.74,140.65,16.1675961]
[1720672062945,11.87,140.71,140.65,16.1675961]
[1720672063140,11.87,140.71,140.66,11.87]
[1720672063563,0.34,140.7,140.66,11.87]
[1720672064752,12.21,140.7,140.65,28.0375961]
[1720672064942,0.34,140.7,140.65,28.0375961]
[1720672065144,11.87,140.7,140.65,28.0375961]
[1720672065458,12.21,140.71,140.66,11.87]
[1720672067283,12.21,140.71,140.65,28.0375961]
[1720672069860,11.87,140.71,140.65,28.0375961]
[1720672070052,20.0,140.76,140.68,11.87]
[1720672070245,11.87,140.73,140.68,11.87]
[1720672071746,11.87,140.73,140.65,16.1675961]
[1720672071747,11.87,140.72,140.67,11.87]
[1720672073056,11.87,140.72,140.65,16.1675961]
[1720672073249,12.21,140.71,140.65,16.1675961]
[1720672073558,11.87,140.71,140.65,16.1675961]
[1720672074150,11.87,140.72,140.65,16.1675961]
[1720672074352,0.34,140.71,140.65,16.1675961]
[1720672076268,11.87,140.72,140.65,16.1675961]
[1720672076563,12.38,140.71,140.65,16.1675961]
[1720672076749,12.04,140.71,140.65,16.1675961]
[1720672076949,0.34,140.7,140.65,16.1675961]
[1720672077560,0.34,140.7,140.66,11.87]
[1720672081273,0.34,140.7,140.65,16.1675961]
[1720672081480,0.34,140.7,140.65,28.0375961]
[1720672084055,11.87,140.71,140.65,28.0375961]
[1720672084255,0.17,140.74,140.67,11.87]
[1720672084456,11.87,140.72,140.67,11.87]
[1720672085263,11.87,140.72,140.68,1.42140209]
[1720672090283,11.87,140.72,140.68,1.42129283]
[1720672090489,11.87,140.71,140.68,1.42129283]
[1720672090782,0.17,140.73,140.67,11.87]
[1720672090983,12.04,140.73,140.68,11.87]
[1720672091188,12.21,140.73,140.68,11.87]
[1720672092964,12.21,140.73,140.65,16.1675961]
[1720672093176,11.87,140.72,140.67,11.87]
[1720672093371,11.87,140.72,140.65,16.1675961]
[1720672093574,11.87,140.72,140.66,11.87]
[1720672094387,0.51,140.73,140.66,11.87]
[1720672094584,11.87,140.72,140.67,11.87]
[1720672094792,0.34,140.73,140.67,11.87]
[1720672094793,12.21,140.73,140.67,11.87]
[1720672095174,11.87,140.72,140.67,11.87]
[1720672096602,13.44060017,140.81,140.68,67.4502]
[1720672096901,13.44060017,140.81,140.65,21.9758961]
[1720672096902,7.0138,140.85,140.72,6.1533]
[1720672097194,11.87,140.81,140.73,45.0]
[1720672097395,11.87,140.79,140.74,11.87]
[1720672097588,47.48,140.84,140.72,6.1533]
[1720672097589,11.87,140.8,140.72,6.1533]
[1720672097789,11.87,140.79,140.74,11.87]
[1720672098179,47.48,140.84,140.74,11.87]
[1720672098385,11.87,140.79,140.74,11.87]
[1720672098586,47.48,140.84,140.74,11.87]
[1720672098790,11.87,140.8,140.75,11.87]
[1720672099004,47.48,140.84,140.75,11.87]
[1720672099181,11.87,140.81,140.76,11.87]
[1720672099882,11.87,140.82,140.77,11.87]
[1720672100299,11.87,140.81,140.76,11.87]
[1720672100482,0.17,140.8,140.76,11.87]
[1720672103615,12.04,140.82,140.77,11.87]
[1720672103819,0.17,140.81,140.77,11.87]
[1720672105416,0.17,140.81,140.72,6.1533]
[1720672105417,12.21,140.81,140.72,6.1533]
[1720672105727,0.34,140.8,140.76,11.87]
[1720672105930,0.17,140.79,140.75,11.87]
[1720672106503,0.17,140.84,140.77,11.87]
[1720672106703,0.17,140.81,140.77,11.87]
[1720672107713,0.17,140.81,140.72,6.1533]
[1720672108033,0.34,140.81,140.77,11.87]
[1720672110937,0.34,140.81,140.78,11.87]
[1720672111234,0.51,140.82,140.78,11.87]
[1720672113034,0.17,140.82,140.79,11.87]
[1720672113408,0.34,140.83,140.79,11.87]
[1720672115042,6.1943,140.85,140.79,11.87]
[1720672115340,0.17,140.85,140.81,11.87]
[1720672115510,0.51,140.85,140.81,11.87]
[1720672117222,0.34,140.85,140.81,11.87]
[1720672117816,11.87,140.87,140.81,11.87]
[1720672117817,0.51,140.86,140.81,11.87]
[1720672118035,0.17,140.86,140.82,11.87]
[1720672119732,0.34,140.86,140.82,11.87]
[1720672126339,0.17,140.85,140.76,16.5782]
[1720672126520,0.17,140.82,140.73,6.1283]
[1720672126722,11.87,140.78,140.73,11.87]
[1720672127344,11.87,140.77,140.72,28.4763]
[1720672128322,11.87,140.78,140.73,11.87]
[1720672128525,12.21,140.79,140.74,11.87]
[1720672130648,12.04,140.79,140.74,11.87]
[1720672132057,11.87,140.79,140.74,11.87]
[1720672132234,11.87,140.79,140.72,16.6063]
[1720672132235,12.04,140.8,140.75,11.87]
[1720672133253,11.87,140.8,140.75,11.87]
[1720672137843,11.87,140.8,140.72,16.6063]
[1720672138061,11.87,140.8,140.74,11.87]
[1720672138628,11.87,140.79,140.74,11.87]
[1720672139360,11.87,140.79,140.72,16.6063]
[1720672139544,0.34,140.78,140.74,11.87]
[1720672140060,12.21,140.78,140.73,11.87]
[1720672141969,0.34,140.78,140.74,11.87]
[1720672142261,0.17,140.78,140.74,11.87]
[1720672144151,12.04,140.78,140.73,11.87]
[1720672144348,11.87,140.79,140.74,11.87]
[1720672145154,11.87,140.79,140.75,1.41588611]
[1720672145362,12.21,140.8,140.75,13.28588611]
[1720672145661,12.21,140.8,140.76,1.41578551]
[1720672146758,7.0059,140.84,140.77,1.41568493]
[1720672146954,7.0059,140.84,140.76,11.87]
[1720672146955,11.87,140.81,140.76,11.87]
[1720672147539,11.87,140.8,140.75,18.3439]
[1720672147739,11.87,140.8,140.75,6.4739]
[1720672147951,11.87,140.8,140.72,16.6063]
[1720672148156,11.87,140.79,140.74,11.87]
[1720672149159,0.34,140.8,140.72,16.6063]
[1720672149160,12.04,140.78,140.73,11.87]
[1720672150458,11.87,140.79,140.74,11.87]
[1720672150757,11.87,140.8,140.75,11.87]
[1720672152456,11.87,140.79,140.75,11.87]
[1720672152662,11.87,140.79,140.74,11.87]
[1720672156465,11.87,140.8,140.75,11.87]
[1720672161466,11.87,140.8,140.72,16.6063]
[1720672161467,11.87,140.79,140.72,16.6063]
[1720672161665,11.87,140.79,140.74,11.87]
[1720672162077,0.17,140.78,140.74,11.87]
[1720672162250,12.04,140.78,140.73,11.87]
[1720672162451,11.87,140.79,140.74,11.87]
[1720672164858,11.87,140.79,140.72,16.6063]
[1720672165177,11.87,140.79,140.74,11.87]
[1720672165671,11.87,140.79,140.73,11.87]
[1720672168675,11.87,140.77,140.68,16.3505]
[1720672168866,11.87,140.77,140.71,11.87]
[1720672170675,11.87,140.77,140.72,11.87]
[1720672171758,11.87,140.77,140.69,45.0]
[1720672171964,11.87,140.77,140.71,11.87]
[1720672172164,0.17,140.76,140.68,16.3505]
[1720672172377,11.87,140.74,140.69,11.87]
[1720672172872,0.17,140.75,140.71,11.87]
[1720672173077,11.87,140.76,140.71,11.87]
[1720672174176,11.87,140.76,140.7,11.87]
[1720672174478,11.87,140.75,140.7,11.87]
[1720672176263,11.87,140.75,140.68,16.3505]
[1720672176476,11.87,140.75,140.7,11.87]
[1720672187107,0.17,140.76,140.72,11.87]
[1720672188196,12.04,140.76,140.71,11.87]
[1720672188400,0.34,140.75,140.71,11.87]
[1720672188702,0.34,140.75,140.7,11.87]
[1720672189879,2.78769098,140.8,140.7,11.87]
[1720672190211,11.87,140.74,140.68,16.3505]
[1720672190501,11.87,140.74,140.69,11.87]
[1720672191199,11.87,140.74,140.7,11.87]
[1720672192282,0.17,140.78,140.7,11.87]
[1720672192482,11.87,140.76,140.71,11.87]
[1720672193008,45.51,140.78,140.71,11.87]
[1720672193183,11.87,140.76,140.71,11.87]
[1720672196602,11.87,140.77,140.72,11.87]
[1720672198703,11.87,140.77,140.68,16.3505]
[1720672198909,11.87,140.76,140.71,11.87]
[1720672199092,0.34,140.75,140.68,16.3505]
[1720672199286,11.87,140.74,140.69,11.87]
[1720672200398,0.34,140.75,140.7,11.87]
[1720672200593,0.34,140.75,140.65,6.7599961]
[1720672200594,11.87,140.73,140.65,6.7599961]
[1720672200782,11.87,140.72,140.67,11.87]
[1720672201305,11.87,140.73,140.67,11.87]
[1720672201617,11.87,140.72,140.67,11.87]
[1720672201799,12.04,140.74,140.68,11.87]
[1720672202183,11.87,140.74,140.68,11.87]
[1720672203115,7.1403,140.79,140.69,27.953]
[1720672203287,39.40238737,140.78,140.71,11.87]
[1720672203488,20.0,140.78,140.71,11.87]
[1720672203989,11.87,140.76,140.71,11.87]
[1720672207126,11.87,140.76,140.69,16.083]
[1720672207318,10.14713231,140.83,140.73,11.87]
[1720672207525,10.14713231,140.83,140.7,63.0504]
[1720672207526,11.87,140.78,140.72,11.87]
[1720672207825,11.87,140.78,140.73,11.87]
[1720672209225,11.87,140.77,140.72,11.87]
[1720672209606,11.87,140.77,140.7,6.1804]
[1720672209806,11.87,140.77,140.72,11.87]
[1720672210325,0.17,140.78,140.72,11.87]
[1720672210626,12.04,140.78,140.73,11.87]
[1720672210806,0.34,140.77,140.73,11.87]
[1720672212129,7.3538,140.83,140.7,18.0504]
[1720672212310,11.87,140.8,140.75,11.87]
[1720672213622,0.34,140.79,140.75,11.87]
[1720672214238,0.17,140.79,140.75,11.87]
[1720672214440,6.3252,140.88,140.78,11.87]
[1720672214629,11.87,140.86,140.81,11.87]
[1720672214929,11.87,140.87,140.82,11.87]
[1720672215132,19.39484956,140.86,140.82,11.87]
[1720672215511,6.3252,140.88,140.82,11.87]
[1720672215713,31.26419186,140.87,140.82,11.87]
[1720672216017,11.87,140.87,140.82,11.87]
[1720672216733,11.87,140.85,140.76,21.1107]
[1720672216934,11.87,140.85,140.77,11.87]
[1720672217238,12.21,140.86,140.81,11.87]
[1720672218938,12.21,140.86,140.76,21.1107]
[1720672219123,12.21,140.86,140.81,11.87]
[1720672220123,12.21,140.86,140.77,45.0]
[1720672220327,11.87,140.84,140.76,21.1107]
[1720672220522,12.21,140.83,140.76,21.1107]
[1720672220833,12.21,140.83,140.78,11.87]
[1720672224036,11.87,140.84,140.79,11.87]
[1720672224243,0.17,140.85,140.81,11.87]
[1720672224431,0.51,140.85,140.81,11.87]
[1720672224745,12.38,140.85,140.8,11.87]
[1720672225821,0.51,140.85,140.77,11.87]
[1720672226021,0.51,140.85,140.81,11.87]
[1720672226848,0.34,140.85,140.82,1.42014752]
[1720672227057,0.34,140.85,140.81,11.87]
[1720672227739,0.17,140.84,140.78,1.42008598]
[1720672227921,0.51,140.84,140.8,11.87]
[1720672228124,0.51,140.84,140.81,1.41978342]
[1720672230448,0.51,140.84,140.8,11.87]
[1720672230627,0.51,140.84,140.78,1.41978342]
[1720672230628,12.38,140.84,140.78,1.41978342]
[1720672230828,12.38,140.84,140.79,11.87]
[1720672231829,0.51,140.84,140.8,11.87]
[1720672235252,12.38,140.84,140.76,21.1107]
[1720672235452,11.87,140.83,140.78,11.87]
[1720672235831,12.38,140.84,140.79,11.87]
[1720672236355,12.38,140.84,140.76,21.1107]
[1720672236551,12.38,140.84,140.79,11.87]
[1720672237256,12.38,140.84,140.8,11.87]
[1720672237257,0.51,140.84,140.8,11.87]
[1720672240848,12.38,140.84,140.79,11.87]
[1720672242362,0.17,140.84,140.8,11.87]
[1720672242550,6.3252,140.88,140.8,11.87]
[1720672242551,11.87,140.85,140.8,11.87]
[1720672242859,0.17,140.86,140.77,11.87]
[1720672242860,12.38,140.86,140.77,11.87]
[1720672243159,12.38,140.86,140.81,11.87]
[1720672243662,11.87,140.85,140.8,11.87]
[1720672244858,11.87,140.85,140.76,21.1107]
[1720672245170,0.51,140.86,140.76,21.1107]
[1720672245171,12.21,140.84,140.79,11.87]
[1720672245465,11.87,140.84,140.79,11.87]
[1720672246468,0.17,140.83,140.79,11.87]
[1720672246664,0.17,140.83,140.76,21.1107]
[1720672246665,12.21,140.83,140.76,15.0921]
[1720672246843,0.34,140.82,140.77,11.87]
[1720672247144,0.17,140.81,140.77,11.87]
[1720672247345,0.34,140.81,140.77,11.87]
[1720672247554,12.21,140.81,140.76,11.87]
[1720672247866,12.21,140.81,140.75,11.87]
[1720672248163,0.17,140.8,140.73,15.2076]
[1720672248359,12.21,140.8,140.75,11.87]
[1720672248559,12.21,140.8,140.7,273.2076]
[1720672248560,11.87,140.78,140.7,273.2076]
[1720672248757,11.87,140.78,140.73,11.87]
[1720672248958,11.87,140.78,140.7,15.2076]
[1720672249159,12.21,140.79,140.7,27.0776]
[1720672249359,0.17,140.78,140.74,11.87]
[1720672249948,12.21,140.79,140.74,11.87]
[1720672250844,0.17,140.79,140.74,11.87]
[1720672251044,0.17,140.8,140.77,11.87]
[1720672251367,0.17,140.82,140.73,6.4969]
[1720672251553,18.4455,140.83,140.78,11.87]
[1720672251946,6.5755,140.83,140.79,11.87]
[1720672252571,18.4455,140.83,140.78,11.87]
[1720672253149,18.4455,140.83,140.75,15.1566]
[1720672253150,6.0121,140.87,140.75,15.1566]
[1720672253469,11.87,140.86,140.81,11.87]
[1720672253769,6.0121,140.87,140.81,11.87]
[1720672253956,11.87,140.86,140.81,11.87]
[1720672254345,6.0121,140.87,140.77,11.87]
[1720672254545,6.0121,140.87,140.82,11.87]
[1720672254546,0.34,140.86,140.82,11.87]
[1720672257758,12.21,140.86,140.81,11.87]
[1720672258864,6.0121,140.87,140.81,11.87]
[1720672259066,7.0557,140.91,140.8,16.6268]
[1720672259271,19.39417038,140.9,140.84,11.87]
[1720672259464,11.87,140.88,140.83,11.87]
[1720672259659,19.39417038,140.87,140.82,11.87]
[1720672259875,31.26417038,140.87,140.82,11.87]
[1720672260187,11.87,140.87,140.82,11.87]
[1720672260370,0.17,140.86,140.82,11.87]
[1720672260561,12.38,140.86,140.81,11.87]
[1720672261571,12.38,140.86,140.76,15.132]
[1720672261875,11.87,140.84,140.79,11.87]
[1720672262091,7.5461,140.86,140.81,11.87]
[1720672262092,6.7266,140.86,140.81,11.87]
[1720672262282,6.7266,140.86,140.82,11.87]
[1720672262771,0.51,140.86,140.82,11.87]
[1720672263686,0.34,140.86,140.83,11.87]
[1720672263864,0.34,140.87,140.83,11.87]
[1720672264067,0.17,140.87,140.83,11.87]
[1720672264267,0.17,140.87,140.81,16.5193]
[1720672264471,19.56401984,140.88,140.82,11.87]
[1720672264667,11.87,140.86,140.77,16.594]
[1720672264881,0.17,140.85,140.81,11.87]
[1720672265585,0.34,140.85,140.81,11.87]
[1720672267364,0.17,140.88,140.83,11.87]
[1720672267565,31.77468394,140.88,140.83,11.87]
[1720672267883,12.38,140.88,140.83,11.87]
[1720672268388,12.38,140.88,140.77,16.594]
[1720672268389,11.87,140.85,140.77,16.594]
[1720672268679,11.87,140.85,140.8,11.87]
[1720672268881,12.21,140.86,140.81,11.87]
[1720672269263,0.34,140.86,140.81,11.87]
[1720672269475,12.21,140.87,140.82,11.87]
[1720672269665,0.17,140.86,140.82,11.87]
[1720672270685,0.34,140.87,140.78,0.17]
[1720672270867,12.21,140.88,140.84,11.87]
[1720672271069,12.21,140.88,140.83,11.87]
[1720672272067,6.2166,140.9,140.85,11.87]
[1720672272068,18.0866,140.9,140.85,11.87]
[1720672272263,19.39258385,140.89,140.85,11.87]
[1720672272474,11.87,140.89,140.84,11.87]
[1720672273366,0.17,140.88,140.84,11.87]
[1720672277791,11.87,140.89,140.84,11.87]
[1720672277996,18.2566,140.9,140.85,11.87]
[1720672278201,0.17,140.89,140.85,11.87]
[1720672278374,0.51,140.89,140.85,11.87]
[1720672278572,12.38,140.89,140.84,11.87]
[1720672284495,11.87,140.88,140.83,11.87]
[1720672284679,12.21,140.87,140.82,28.0006]
[1720672284993,11.87,140.87,140.82,28.0006]
[1720672288601,0.17,140.86,140.79,16.4746]
[1720672288900,12.38,140.86,140.81,11.87]
[1720672289588,11.87,140.85,140.8,11.87]
[1720672289894,11.87,140.85,140.79,16.4746]
[1720672289895,0.34,140.86,140.83,11.87]
[1720672290199,0.34,140.87,140.83,11.87]
[1720672290784,0.17,140.86,140.83,11.87]
[1720672290995,0.17,140.86,140.82,11.87]
[1720672291597,12.04,140.86,140.81,11.87]
[1720672291899,0.34,140.85,140.81,11.87]
[1720672293194,0.34,140.85,140.82,11.87]
[1720672293390,0.34,140.85,140.79,16.4746]
[1720672293596,0.34,140.85,140.82,11.87]
[1720672293906,12.8595,140.88,140.83,11.87]
[1720672294080,0.51,140.87,140.83,11.87]
[1720672294774,0.34,140.87,140.83,11.87]
[1720672294979,0.17,140.87,140.85,11.87]
[1720672295186,0.17,140.89,140.85,11.87]
[1720672295412,0.34,140.89,140.85,11.87]
[1720672296405,0.17,140.88,140.85,11.87]
[1720672296606,0.34,140.88,140.85,11.87]
[1720672297105,0.34,140.88,140.84,11.87]
[1720672297408,0.34,140.88,140.85,11.87]
[1720672297712,0.17,140.88,140.85,11.87]
[1720672298014,0.51,140.89,140.85,11.87]
[1720672298315,19.39236002,140.88,140.85,11.87]
[1720672298527,19.39236002,140.88,140.84,11.87]
[1720672299193,12.38,140.89,140.84,11.87]
[1720672299389,19.39240503,140.88,140.84,11.87]
[1720672302199,19.39240503,140.88,140.85,11.87]
[1720672302587,0.51,140.89,140.85,11.87]
[1720672302788,19.39234099,140.88,140.85,11.87]
[1720672303213,0.17,140.89,140.85,11.87]
[1720672303214,19.56234099,140.89,140.85,11.87]
[1720672303411,19.39235306,140.88,140.85,11.87]
[1720672304118,19.39235306,140.88,140.86,11.87]
[1720672304414,0.17,140.89,140.85,11.87]
[1720672304605,19.39233939,140.9,140.84,15.4979]
[1720672304797,19.39233939,140.9,140.84,27.3679]
[1720672305000,19.39233939,140.9,140.89,11.87]
[1720672305925,2.88528635,140.91,140.89,11.87]
[1720672306215,19.39161558,140.9,140.86,6.5047]
[1720672306404,11.87,140.96,140.86,6.5047]
[1720672306610,19.39134986,140.95,140.91,11.87]
[1720672306794,31.26134986,140.95,140.9,11.87]
[1720672306997,19.73134986,140.94,140.9,11.87]
[1720672307190,19.39134986,140.93,140.9,11.87]
[1720672307409,19.39134986,140.92,140.9,11.87]
[1720672307592,19.56134986,140.94,140.9,11.87]
[1720672308426,31.43134986,140.94,140.89,11.87]
[1720672308716,11.87,140.91,140.84,15.4979]
[1720672308914,11.87,140.91,140.86,11.87]
[1720672311310,11.87,140.91,140.84,15.4979]
[1720672311516,11.87,140.89,140.82,6.3824]
[1720672311813,0.51,140.88,140.81,16.0807]
[1720672312126,11.87,140.85,140.77,274.0807]
[1720672312300,11.87,140.84,140.79,11.87]
[1720672313027,11.87,140.82,140.77,27.9507]
[1720672314297,11.87,140.81,140.77,16.0807]
[1720672314498,11.87,140.8,140.73,16.6598]
[1720672314703,11.87,140.8,140.75,11.87]
[1720672314916,11.87,140.79,140.74,11.87]
[1720672315131,11.87,140.8,140.74,11.87]
[1720672315919,11.87,140.8,140.75,11.87]
[1720672316830,11.87,140.81,140.76,11.87]
[1720672318335,11.87,140.8,140.75,11.87]
[1720672320035,0.17,140.83,140.75,11.87]
[1720672320242,0.51,140.83,140.75,11.87]
[1720672320609,11.87,140.81,140.76,11.87]
[1720672321111,11.87,140.8,140.75,11.87]
[1720672321313,0.17,140.83,140.75,11.87]
[1720672321526,11.87,140.81,140.76,11.87]
[1720672322329,11.87,140.8,140.75,11.87]
[1720672324141,0.17,140.82,140.76,11.87]
[1720672324316,11.87,140.81,140.76,11.87]
[1720672324519,11.87,140.8,140.75,11.87]
[1720672326943,11.87,140.8,140.73,16.6598]
[1720672327151,0.17,140.78,140.69,16.4789]
[1720672327357,11.87,140.74,140.69,28.3489]
[1720672327543,11.87,140.73,140.69,16.4789]
[1720672327928,12.21,140.75,140.69,16.4789]
[1720672328133,11.87,140.75,140.7,11.87]
[1720672328942,65.0,140.79,140.71,11.87]
[1720672329147,11.87,140.77,140.72,11.87]
[1720672329342,12.21,140.76,140.71,11.87]
[1720672329552,11.87,140.76,140.71,11.87]
[1720672329755,0.51,140.78,140.71,11.87]
[1720672330053,11.87,140.76,140.71,11.87]
[1720672333352,11.87,140.75,140.69,16.4789]
[1720672333558,11.87,140.75,140.7,11.87]
[1720672333965,11.87,140.74,140.69,28.3489]
[1720672334335,0.51,140.78,140.71,11.87]
[1720672334636,11.87,140.76,140.71,11.87]
[1720672335462,11.87,140.75,140.7,11.87]
[1720672335840,11.87,140.76,140.71,11.87]
[1720672336559,0.51,140.78,140.72,11.87]
[1720672336756,11.87,140.78,140.73,11.87]
[1720672337261,11.87,140.77,140.72,11.87]
[1720672338143,11.87,140.78,140.73,11.87]
[1720672339349,0.34,140.79,140.74,11.87]
[1720672339549,12.21,140.79,140.74,11.87]
[1720672342149,6.1068,140.83,140.75,11.87]
[1720672342455,11.87,140.8,140.75,11.87]
[1720672342960,6.1068,140.83,140.75,11.87]
[1720672343164,11.87,140.81,140.76,11.87]
[1720672344744,11.26463593,140.87,140.78,11.87]
[1720672345170,11.87,140.83,140.78,11.87]
[1720672346254,6.1148,140.9,140.79,11.87]
[1720672346459,11.87,140.85,140.8,12.44757772]
[1720672346771,11.87,140.85,140.81,0.57753669]
[1720672347945,11.87,140.85,140.8,11.87]
[1720672348437,11.87,140.84,140.8,11.87]
[1720672348642,11.87,140.84,140.79,11.87]
[1720672349451,11.87,140.82,140.77,34.3489]
[1720672349857,12.21,140.83,140.78,11.87]
[1720672351250,0.17,140.82,140.77,15.8722]
[1720672351660,0.34,140.83,140.77,15.8722]
[1720672351964,12.21,140.83,140.77,15.8722]
[1720672352263,12.21,140.83,140.78,11.87]
[1720672352869,6.1148,140.9,140.78,11.87]
[1720672353071,11.87,140.85,140.79,11.87]
[1720672353269,11.87,140.86,140.79,6.4903]
[1720672353448,11.87,140.86,140.81,11.87]
[1720672353979,11.87,140.87,140.82,11.87]
[1720672355579,11.87,140.89,140.84,11.87]
[1720672357473,11.87,140.88,140.83,11.87]
[1720672357976,0.17,140.89,140.8,15.0442]
[1720672358182,11.87,140.86,140.81,11.87]
[1720672358475,0.17,140.88,140.82,11.87]
[1720672358780,11.87,140.87,140.82,11.87]
[1720672359366,0.17,140.88,140.81,11.87]
[1720672359677,11.87,140.86,140.81,11.87]
[1720672359881,11.87,140.87,140.82,11.87]
[1720672361982,0.17,140.88,140.82,11.87]
[1720672362172,0.17,140.88,140.83,11.87]
[1720672362564,0.34,140.88,140.83,11.87]
[1720672362765,0.17,140.87,140.82,11.87]
[1720672363390,0.17,140.87,140.8,15.0442]
[1720672363596,11.87,140.85,140.8,15.0442]
[1720672363786,11.87,140.84,140.8,15.0442]
[1720672364308,11.87,140.86,140.81,11.87]
[1720672364491,12.21,140.87,140.8,15.0442]
[1720672364698,0.34,140.86,140.82,11.87]
[1720672365390,12.21,140.86,140.82,11.87]
[1720672365903,12.21,140.86,140.8,15.0442]
[1720672366089,12.21,140.86,140.81,11.87]
[1720672366475,12.21,140.86,140.8,15.0442]
[1720672366476,11.87,140.87,140.82,11.87]
[1720672367913,2.80496322,140.92,140.83,11.87]
[1720672368077,11.87,140.9,140.85,11.87]
[1720672370802,0.34,140.91,140.8,36.4142]
[1720672370803,0.34,140.91,140.87,11.87]
[1720672371029,0.17,140.91,140.87,11.87]
[1720672374825,2.75287565,140.95,140.87,11.87]
[1720672375006,11.87,140.92,140.87,11.87]
[1720672375208,0.51,140.94,140.88,11.87]
[1720672375602,11.87,140.92,140.88,11.87]
[1720672375809,11.87,140.93,140.88,11.87]
[1720672376004,0.17,140.92,140.88,11.87]